[Event "Titled Tuesday Blitz March 15 Early 2022"]
[White "Polster, Christian"]
[Black "Weishaeutel, Moritz"]
[WhiteFideId "12965081"]
[BlackFideId "12967300"]
[WhiteElo "2316"]
[BlackElo "2002"]
[Result "0-1"]
[Round "11"]
[TimeControl "180+1"]
[Date "2022.03.15"]
[WhiteClock "0:00:03"]
[BlackClock "0:01:14"]

1. e4 {[%clk 0:03:00]}  e5 {[%clk 0:03:00]} 2. Nf3 {[%clk 0:03:00]}  Nf6 {[%clk 0:03:00]} 3. Bc4 {[%clk 0:02:59]}  Nxe4 {[%clk 0:03:00]} 4. Nc3 {[%clk 0:02:59]}  Nc6 {[%clk 0:02:56]} 5. O-O {[%clk 0:02:42]}  Nxc3 {[%clk 0:02:53]} 6. dxc3 {[%clk 0:02:37]}  Be7 {[%clk 0:02:53]} 7. Qd5 {[%clk 0:02:01]}  O-O {[%clk 0:02:53]} 8. Nxe5 {[%clk 0:01:58]}  Nxe5 {[%clk 0:02:54]} 9. Qxe5 {[%clk 0:01:59]}  c6 {[%clk 0:02:53]} 10. Bf4 {[%clk 0:01:53]}  d5 {[%clk 0:02:44]} 11. Bd3 {[%clk 0:01:39]}  Bf6 {[%clk 0:02:44]} 12. Qh5 {[%clk 0:01:37]}  g6 {[%clk 0:02:44]} 13. Qf3 {[%clk 0:01:36]}  Re8 {[%clk 0:02:40]} 14. Rfe1 {[%clk 0:01:32]}  Be6 {[%clk 0:02:40]} 15. Bc7 {[%clk 0:01:19]}  Qe7 {[%clk 0:02:26]} 16. Bd6 {[%clk 0:01:07]}  Qd8 {[%clk 0:02:26]} 17. Bc7 {[%clk 0:01:06]}  Qxc7 {[%clk 0:02:17]} 18. Qxf6 {[%clk 0:01:04]}  Qe7 {[%clk 0:02:18]} 19. Qxe7 {[%clk 0:00:47]}  Rxe7 {[%clk 0:02:19]} 20. c4 {[%clk 0:00:37]}  Rae8 {[%clk 0:02:17]} 21. cxd5 {[%clk 0:00:33]}  Bxd5 {[%clk 0:02:17]} 22. Rxe7 {[%clk 0:00:34]}  Rxe7 {[%clk 0:02:18]} 23. f3 {[%clk 0:00:27]}  b5 {[%clk 0:02:15]} 24. b4 {[%clk 0:00:20]}  f5 {[%clk 0:02:09]} 25. Kf2 {[%clk 0:00:19]}  Kf7 {[%clk 0:02:10]} 26. a4 {[%clk 0:00:20]}  a6 {[%clk 0:02:08]} 27. a5 {[%clk 0:00:16]}  c5 {[%clk 0:02:00]} 28. c3 {[%clk 0:00:11]}  cxb4 {[%clk 0:01:54]} 29. cxb4 {[%clk 0:00:12]}  Rc7 {[%clk 0:01:55]} 30. Rd1 {[%clk 0:00:11]}  Bb3 {[%clk 0:01:54]} 31. Rd2 {[%clk 0:00:10]}  Rc1 {[%clk 0:01:47]} 32. Be2 {[%clk 0:00:10]}  Ke7 {[%clk 0:01:45]} 33. Rd4 {[%clk 0:00:09]}  Rc2 {[%clk 0:01:43]} 34. Ke3 {[%clk 0:00:09]}  Bc4 {[%clk 0:01:33]} 35. Rd2 {[%clk 0:00:05]}  Rc3+ {[%clk 0:01:17]} 36. Kd4 {[%clk 0:00:05]}  Rb3 {[%clk 0:01:16]} 37. Bxc4 {[%clk 0:00:04]}  Rxb4 {[%clk 0:01:17]} 38. Rc2 {[%clk 0:00:03]}  Ra4 {[%clk 0:01:14]} 39. Kc5 {[%clk 0:00:02]}  bxc4 {[%clk 0:01:15]} 40. Kb6 {[%clk 0:00:03]}  Kd6 {[%clk 0:01:14]} 41. Kxa6 {[%clk 0:00:03]}  Kc5 {[%clk 0:01:14]} 42. Rc3 {[%clk 0:00:02]}  Kb4 {[%clk 0:01:13]} 43. Rc1 {[%clk 0:00:02]}  Rxa5+ {[%clk 0:01:14]} 44. Kb6 {[%clk 0:00:03]}  Ra2 {[%clk 0:01:14]} 45. g4 {[%clk 0:00:02]}  fxg4 {[%clk 0:01:13]} 46. fxg4 {[%clk 0:00:03]}  Rxh2 {[%clk 0:01:14]} 0-1


[Site "https://www.chess.com"]

[Event "Titled Tuesday Blitz March 15 Early 2022"]
[White "Popadic, Dragan"]
[Black "Milosevic, Milos"]
[WhiteFideId "913650"]
[BlackFideId "964875"]
[WhiteElo "2222"]
[BlackElo "2237"]
[Result "1-0"]
[Round "11"]
[TimeControl "180+1"]
[Date "2022.03.15"]
[WhiteClock "0:01:46"]
[BlackClock "0:00:50"]

1. e4 {[%clk 0:02:48]}  c5 {[%clk 0:02:58]} 2. Nc3 {[%clk 0:02:47]}  Nc6 {[%clk 0:02:46]} 3. f4 {[%clk 0:02:47]}  e6 {[%clk 0:02:46]} 4. Nf3 {[%clk 0:02:47]}  d5 {[%clk 0:02:45]} 5. Bb5 {[%clk 0:02:47]}  a6 {[%clk 0:02:38]} 6. Bxc6+ {[%clk 0:02:46]}  bxc6 {[%clk 0:02:38]} 7. d3 {[%clk 0:02:46]}  g6 {[%clk 0:02:30]} 8. O-O {[%clk 0:02:45]}  Bg7 {[%clk 0:02:30]} 9. Kh1 {[%clk 0:02:35]}  Ne7 {[%clk 0:02:22]} 10. Na4 {[%clk 0:02:32]}  Qa5 {[%clk 0:02:14]} 11. c4 {[%clk 0:02:27]}  Bd7 {[%clk 0:01:54]} 12. Be3 {[%clk 0:02:20]}  d4 {[%clk 0:01:35]} 13. Bd2 {[%clk 0:02:20]}  Qc7 {[%clk 0:01:28]} 14. Nxc5 {[%clk 0:02:19]}  O-O {[%clk 0:01:28]} 15. Bb4 {[%clk 0:02:14]}  a5 {[%clk 0:01:26]} 16. Ba3 {[%clk 0:02:14]}  Nc8 {[%clk 0:01:14]} 17. Nxd7 {[%clk 0:02:13]}  Qxd7 {[%clk 0:01:13]} 18. Bxf8 {[%clk 0:02:12]}  Bxf8 {[%clk 0:01:14]} 19. Qd2 {[%clk 0:02:06]}  Bb4 {[%clk 0:01:10]} 20. Qf2 {[%clk 0:02:05]}  c5 {[%clk 0:01:09]} 21. Qh4 {[%clk 0:02:04]}  a4 {[%clk 0:01:07]} 22. f5 {[%clk 0:02:01]}  exf5 {[%clk 0:01:02]} 23. exf5 {[%clk 0:01:59]}  Qd6 {[%clk 0:00:52]} 24. Ng5 {[%clk 0:01:51]}  h5 {[%clk 0:00:50]} 25. fxg6 {[%clk 0:01:48]}  Qf6 {[%clk 0:00:50]} 26. Rxf6 {[%clk 0:01:46]} 1-0


[Site "https://www.chess.com"]

[Event "Titled Tuesday Blitz March 15 Early 2022"]
[White "Quirke, Jeffrey"]
[Black "Bogumil, Tatiana"]
[WhiteFideId "2013029"]
[BlackFideId "4110579"]
[WhiteElo "2240"]
[BlackElo "1761"]
[Result "0-1"]
[Round "11"]
[TimeControl "180+1"]
[Date "2022.03.15"]
[WhiteClock "0:00:04"]
[BlackClock "0:01:14"]

1. c4 {[%clk 0:02:53]}  Nf6 {[%clk 0:02:58]} 2. g3 {[%clk 0:02:52]}  g6 {[%clk 0:02:56]} 3. Bg2 {[%clk 0:02:52]}  Bg7 {[%clk 0:02:57]} 4. Nc3 {[%clk 0:02:51]}  O-O {[%clk 0:02:57]} 5. Nf3 {[%clk 0:02:52]}  c5 {[%clk 0:02:57]} 6. d4 {[%clk 0:02:49]}  Na6 {[%clk 0:02:54]} 7. O-O {[%clk 0:02:45]}  d6 {[%clk 0:02:54]} 8. b3 {[%clk 0:02:40]}  cxd4 {[%clk 0:02:39]} 9. Nxd4 {[%clk 0:02:39]}  Nc5 {[%clk 0:02:39]} 10. Bb2 {[%clk 0:02:38]}  Rb8 {[%clk 0:02:38]} 11. Qc2 {[%clk 0:02:04]}  a6 {[%clk 0:02:37]} 12. Rad1 {[%clk 0:01:56]}  Bd7 {[%clk 0:02:34]} 13. a4 {[%clk 0:01:54]}  Qc7 {[%clk 0:02:17]} 14. e3 {[%clk 0:01:22]}  Rfc8 {[%clk 0:02:07]} 15. Rc1 {[%clk 0:01:21]}  h6 {[%clk 0:02:04]} 16. Rfd1 {[%clk 0:01:13]}  Ne6 {[%clk 0:02:01]} 17. Nde2 {[%clk 0:01:05]}  Bc6 {[%clk 0:01:56]} 18. e4 {[%clk 0:00:58]}  Nc5 {[%clk 0:01:40]} 19. b4 {[%clk 0:00:45]}  Ne6 {[%clk 0:01:32]} 20. b5 {[%clk 0:00:34]}  Bd7 {[%clk 0:01:29]} 21. Nd5 {[%clk 0:00:15]}  Nxd5 {[%clk 0:01:23]} 22. exd5 {[%clk 0:00:16]}  Nc5 {[%clk 0:01:20]} 23. Bxg7 {[%clk 0:00:15]}  Kxg7 {[%clk 0:01:20]} 24. Qb2+ {[%clk 0:00:08]}  Kh7 {[%clk 0:01:21]} 25. Nd4 {[%clk 0:00:08]}  Nxa4 {[%clk 0:01:18]} 26. Qb4 {[%clk 0:00:06]}  Nc5 {[%clk 0:01:16]} 27. b6 {[%clk 0:00:04]}  Qd8 {[%clk 0:01:14]} 0-1


[Site "https://www.chess.com"]

[Event "Titled Tuesday Blitz March 15 Early 2022"]
[White "Riehle, Marco"]
[Black "Aravindh, Chithambaram VR."]
[WhiteFideId "12904392"]
[BlackFideId "5072786"]
[WhiteElo "2462"]
[BlackElo "2561"]
[Result "0-1"]
[Round "11"]
[TimeControl "180+1"]
[Date "2022.03.15"]
[WhiteClock "0:00:45"]
[BlackClock "0:00:07"]

1. e4 {[%clk 0:03:00]}  g6 {[%clk 0:02:59]} 2. d4 {[%clk 0:03:00]}  Bg7 {[%clk 0:03:00]} 3. c4 {[%clk 0:03:00]}  d6 {[%clk 0:02:58]} 4. Nc3 {[%clk 0:03:00]}  Nd7 {[%clk 0:02:57]} 5. Be3 {[%clk 0:02:50]}  e5 {[%clk 0:02:56]} 6. d5 {[%clk 0:02:51]}  Ne7 {[%clk 0:02:56]} 7. g4 {[%clk 0:02:50]}  h5 {[%clk 0:02:53]} 8. g5 {[%clk 0:02:49]}  f5 {[%clk 0:02:52]} 9. gxf6 {[%clk 0:02:50]}  Nxf6 {[%clk 0:02:51]} 10. f3 {[%clk 0:02:49]}  h4 {[%clk 0:02:49]} 11. Qd2 {[%clk 0:02:46]}  Nh5 {[%clk 0:02:49]} 12. Nge2 {[%clk 0:02:45]}  O-O {[%clk 0:02:48]} 13. O-O-O {[%clk 0:02:36]}  Rxf3 {[%clk 0:02:46]} 14. Ng1 {[%clk 0:02:36]}  Rf7 {[%clk 0:02:44]} 15. Nh3 {[%clk 0:02:27]}  Rxf1 {[%clk 0:02:41]} 16. Rhxf1 {[%clk 0:02:26]}  Bxh3 {[%clk 0:02:41]} 17. Rg1 {[%clk 0:02:27]}  Kh7 {[%clk 0:02:31]} 18. Qf2 {[%clk 0:02:20]}  Ng8 {[%clk 0:01:49]} 19. Bg5 {[%clk 0:02:18]}  Qe8 {[%clk 0:01:21]} 20. Qxh4 {[%clk 0:02:17]}  Bd7 {[%clk 0:01:20]} 21. Ne2 {[%clk 0:02:08]}  b5 {[%clk 0:01:14]} 22. Ng3 {[%clk 0:02:04]}  bxc4 {[%clk 0:00:52]} 23. Rdf1 {[%clk 0:02:00]}  Rb8 {[%clk 0:00:46]} 24. Rf3 {[%clk 0:01:57]}  Nh6 {[%clk 0:00:37]} 25. h3 {[%clk 0:01:44]}  Nf4 {[%clk 0:00:20]} 26. Nf1 {[%clk 0:01:05]}  Ne2+ {[%clk 0:00:17]} 27. Kb1 {[%clk 0:01:03]}  Nxg1 {[%clk 0:00:18]} 28. Rf2 {[%clk 0:01:02]}  c3 {[%clk 0:00:16]} 29. b3 {[%clk 0:01:02]}  Qg8 {[%clk 0:00:08]} 30. Bxh6 {[%clk 0:00:55]}  Bxh6 {[%clk 0:00:07]} 31. Qe7+ {[%clk 0:00:56]}  Kh8 {[%clk 0:00:05]} 32. Rg2 {[%clk 0:00:45]}  Rf8 {[%clk 0:00:05]} 33. Rxg1 {[%clk 0:00:45]}  Qf7 {[%clk 0:00:05]} 34. Qh4 {[%clk 0:00:45]}  Qxf1+ {[%clk 0:00:05]} 35. Rxf1 {[%clk 0:00:44]}  Rxf1+ {[%clk 0:00:06]} 36. Kc2 {[%clk 0:00:45]}  Rc1+ {[%clk 0:00:06]} 37. Kd3 {[%clk 0:00:45]}  Bb5# {[%clk 0:00:07]} 0-1


[Site "https://www.chess.com"]

[Event "Titled Tuesday Blitz March 15 Early 2022"]
[White "Rosen, Eric"]
[Black "Alinasab, Mobina"]
[WhiteFideId "2032562"]
[BlackFideId "12528897"]
[WhiteElo "2362"]
[BlackElo "2052"]
[Result "0-1"]
[Round "11"]
[TimeControl "180+1"]
[Date "2022.03.15"]
[WhiteClock "0:00:02"]
[BlackClock "0:01:21"]

1. d4 {[%clk 0:02:38]}  Nf6 {[%clk 0:02:58]} 2. Bf4 {[%clk 0:02:36]}  e6 {[%clk 0:02:59]} 3. e3 {[%clk 0:02:35]}  b6 {[%clk 0:02:59]} 4. Qf3 {[%clk 0:02:34]}  d5 {[%clk 0:02:57]} 5. Nc3 {[%clk 0:02:34]}  a6 {[%clk 0:02:55]} 6. O-O-O {[%clk 0:02:34]}  Bb7 {[%clk 0:02:55]} 7. g4 {[%clk 0:02:30]}  Nbd7 {[%clk 0:02:55]} 8. g5 {[%clk 0:02:24]}  Ne4 {[%clk 0:02:55]} 9. Nxe4 {[%clk 0:02:25]}  dxe4 {[%clk 0:02:56]} 10. Qg3 {[%clk 0:02:25]}  Rc8 {[%clk 0:02:54]} 11. h4 {[%clk 0:02:14]}  b5 {[%clk 0:02:54]} 12. h5 {[%clk 0:02:14]}  Nb6 {[%clk 0:02:55]} 13. Ne2 {[%clk 0:01:58]}  Nd5 {[%clk 0:02:54]} 14. Be5 {[%clk 0:01:55]}  c5 {[%clk 0:02:48]} 15. h6 {[%clk 0:01:50]}  Rg8 {[%clk 0:02:36]} 16. hxg7 {[%clk 0:01:49]}  Bxg7 {[%clk 0:02:37]} 17. Rxh7 {[%clk 0:01:48]}  Bxe5 {[%clk 0:02:35]} 18. Qxe5 {[%clk 0:01:44]}  Qxg5 {[%clk 0:02:35]} 19. Qxg5 {[%clk 0:01:26]}  Rxg5 {[%clk 0:02:36]} 20. Rh8+ {[%clk 0:01:27]}  Kd7 {[%clk 0:02:35]} 21. Rxc8 {[%clk 0:01:27]}  Kxc8 {[%clk 0:02:36]} 22. dxc5 {[%clk 0:01:28]}  Nf6 {[%clk 0:02:19]} 23. Nd4 {[%clk 0:01:07]}  Rxc5 {[%clk 0:02:17]} 24. Be2 {[%clk 0:01:01]}  Rg5 {[%clk 0:02:17]} 25. a4 {[%clk 0:00:35]}  bxa4 {[%clk 0:02:15]} 26. Kd2 {[%clk 0:00:34]}  e5 {[%clk 0:02:05]} 27. f4 {[%clk 0:00:22]}  exf3 {[%clk 0:01:42]} 28. Nxf3 {[%clk 0:00:22]}  Rg2 {[%clk 0:01:41]} 29. Nxe5 {[%clk 0:00:15]}  Ne4+ {[%clk 0:01:39]} 30. Kd3 {[%clk 0:00:05]}  Nf2+ {[%clk 0:01:38]} 31. Kc3 {[%clk 0:00:03]}  Nxd1+ {[%clk 0:01:38]} 32. Bxd1 {[%clk 0:00:04]}  f6 {[%clk 0:01:39]} 33. Nd3 {[%clk 0:00:04]}  Bc6 {[%clk 0:01:34]} 34. Nc5 {[%clk 0:00:04]}  Bb5 {[%clk 0:01:34]} 35. Bf3 {[%clk 0:00:03]}  Rg3 {[%clk 0:01:32]} 36. Bb7+ {[%clk 0:00:03]}  Kc7 {[%clk 0:01:28]} 37. Kd4 {[%clk 0:00:03]}  Kb6 {[%clk 0:01:24]} 38. Bc8 {[%clk 0:00:04]}  Rg2 {[%clk 0:01:22]} 39. Bf5 {[%clk 0:00:03]}  Rf2 {[%clk 0:01:22]} 40. Be4 {[%clk 0:00:02]}  f5 {[%clk 0:01:21]} 0-1


[Site "https://www.chess.com"]

[Event "Titled Tuesday Blitz March 15 Early 2022"]
[White "Rustemov, Alexander"]
[Black "Shimanov, Aleksandr"]
[WhiteFideId "4119002"]
[BlackFideId "4198603"]
[WhiteElo "2778"]
[BlackElo "2636"]
[Result "0-1"]
[Round "11"]
[TimeControl "180+1"]
[Date "2022.03.15"]
[WhiteClock "0:00:01"]
[BlackClock "0:00:09"]

1. d4 {[%clk 0:02:50]}  d5 {[%clk 0:02:44]} 2. c4 {[%clk 0:02:49]}  c6 {[%clk 0:02:44]} 3. Nc3 {[%clk 0:02:49]}  Nf6 {[%clk 0:02:44]} 4. e3 {[%clk 0:02:49]}  e6 {[%clk 0:02:37]} 5. Nf3 {[%clk 0:02:49]}  a6 {[%clk 0:02:37]} 6. b3 {[%clk 0:02:39]}  Bb4 {[%clk 0:02:35]} 7. Bd2 {[%clk 0:02:38]}  O-O {[%clk 0:02:32]} 8. Bd3 {[%clk 0:02:36]}  Nbd7 {[%clk 0:02:32]} 9. Qc2 {[%clk 0:02:35]}  Qe7 {[%clk 0:02:26]} 10. O-O {[%clk 0:02:34]}  e5 {[%clk 0:02:24]} 11. dxe5 {[%clk 0:02:16]}  Nxe5 {[%clk 0:02:22]} 12. Nxe5 {[%clk 0:02:15]}  Qxe5 {[%clk 0:02:22]} 13. cxd5 {[%clk 0:02:01]}  cxd5 {[%clk 0:02:21]} 14. Ne2 {[%clk 0:02:01]}  Bd6 {[%clk 0:02:21]} 15. f4 {[%clk 0:01:51]}  Qe7 {[%clk 0:02:18]} 16. Nd4 {[%clk 0:01:49]}  Bd7 {[%clk 0:02:15]} 17. Rac1 {[%clk 0:01:44]}  Rfe8 {[%clk 0:02:14]} 18. Qd1 {[%clk 0:01:23]}  Bg4 {[%clk 0:01:55]} 19. Qe1 {[%clk 0:01:22]}  Ne4 {[%clk 0:01:55]} 20. Bxe4 {[%clk 0:01:21]}  Qxe4 {[%clk 0:01:55]} 21. Qg3 {[%clk 0:01:20]}  Bd7 {[%clk 0:01:54]} 22. Qf3 {[%clk 0:01:16]}  Rac8 {[%clk 0:01:30]} 23. Qxe4 {[%clk 0:01:15]}  dxe4 {[%clk 0:01:22]} 24. Kf2 {[%clk 0:01:08]}  Ba3 {[%clk 0:01:21]} 25. Rxc8 {[%clk 0:01:07]}  Rxc8 {[%clk 0:01:22]} 26. Rd1 {[%clk 0:01:06]}  f6 {[%clk 0:01:20]} 27. Ba5 {[%clk 0:01:05]}  Bg4 {[%clk 0:01:17]} 28. Rd2 {[%clk 0:01:04]}  Rc5 {[%clk 0:01:12]} 29. Bb6 {[%clk 0:00:55]}  Rc3 {[%clk 0:01:08]} 30. h3 {[%clk 0:00:53]}  Bd7 {[%clk 0:01:01]} 31. Ne2 {[%clk 0:00:52]}  Rd3 {[%clk 0:01:00]} 32. Rxd3 {[%clk 0:00:41]}  exd3 {[%clk 0:01:01]} 33. Nc3 {[%clk 0:00:40]}  Bc6 {[%clk 0:00:50]} 34. g4 {[%clk 0:00:39]}  Bb4 {[%clk 0:00:50]} 35. Bd4 {[%clk 0:00:38]}  Kf7 {[%clk 0:00:49]} 36. Ke1 {[%clk 0:00:35]}  Bg2 {[%clk 0:00:46]} 37. h4 {[%clk 0:00:35]}  Bh3 {[%clk 0:00:42]} 38. g5 {[%clk 0:00:35]}  Kg6 {[%clk 0:00:42]} 39. Kd2 {[%clk 0:00:35]}  Bf5 {[%clk 0:00:40]} 40. a3 {[%clk 0:00:35]}  Bxa3 {[%clk 0:00:39]} 41. e4 {[%clk 0:00:35]}  Bh3 {[%clk 0:00:37]} 42. Kxd3 {[%clk 0:00:35]}  f5 {[%clk 0:00:28]} 43. h5+ {[%clk 0:00:31]}  Kxh5 {[%clk 0:00:28]} 44. Bxg7 {[%clk 0:00:32]}  Kg6 {[%clk 0:00:17]} 45. Be5 {[%clk 0:00:31]}  fxe4+ {[%clk 0:00:17]} 46. Kxe4 {[%clk 0:00:30]}  Be6 {[%clk 0:00:16]} 47. Nd5 {[%clk 0:00:28]}  Bf5+ {[%clk 0:00:14]} 48. Kd4 {[%clk 0:00:27]}  Kf7 {[%clk 0:00:12]} 49. Nf6 {[%clk 0:00:10]}  Ke6 {[%clk 0:00:11]} 50. Ne4 {[%clk 0:00:09]}  Bb2+ {[%clk 0:00:11]} 51. Ke3 {[%clk 0:00:06]}  Bxe5 {[%clk 0:00:11]} 52. fxe5 {[%clk 0:00:06]}  Kxe5 {[%clk 0:00:11]} 53. Nc5 {[%clk 0:00:06]}  Bc8 {[%clk 0:00:11]} 54. b4 {[%clk 0:00:03]}  b6 {[%clk 0:00:09]} 55. Ne4 {[%clk 0:00:03]}  Bf5 {[%clk 0:00:07]} 56. Nf6 {[%clk 0:00:03]}  Bg6 {[%clk 0:00:07]} 57. Ng4+ {[%clk 0:00:01]}  Kd5 {[%clk 0:00:07]} 58. Nf6+ {[%clk 0:00:01]}  Kc4 {[%clk 0:00:07]} 59. Kf4 {[%clk 0:00:01]}  Kxb4 {[%clk 0:00:07]} 60. Nd5+ {[%clk 0:00:01]}  Kc5 {[%clk 0:00:08]} 61. Ke5 {[%clk 0:00:02]}  a5 {[%clk 0:00:08]} 62. Ne7 {[%clk 0:00:01]}  Bb1 {[%clk 0:00:08]} 63. Kf6 {[%clk 0:00:01]}  a4 {[%clk 0:00:08]} 64. Kg7 {[%clk 0:00:01]}  a3 {[%clk 0:00:09]} 65. Ng8 {[%clk 0:00:01]}  a2 {[%clk 0:00:09]} 0-1


[Site "https://www.chess.com"]

[Event "Titled Tuesday Blitz March 15 Early 2022"]
[White "Samaganova, Aleksandra"]
[Black "Sarkar, Justin"]
[WhiteFideId "13800221"]
[BlackFideId "2010011"]
[WhiteElo "1859"]
[BlackElo "2038"]
[Result "1-0"]
[Round "11"]
[TimeControl "180+1"]
[Date "2022.03.15"]
[WhiteClock "0:00:03"]
[BlackClock "0:00:01"]

1. c4 {[%clk 0:02:58]}  d6 {[%clk 0:02:54]} 2. Nc3 {[%clk 0:02:58]}  e5 {[%clk 0:02:49]} 3. g3 {[%clk 0:02:58]}  Nc6 {[%clk 0:02:45]} 4. Bg2 {[%clk 0:02:56]}  Be6 {[%clk 0:02:43]} 5. d3 {[%clk 0:02:55]}  Qd7 {[%clk 0:02:39]} 6. Rb1 {[%clk 0:02:53]}  g6 {[%clk 0:02:30]} 7. b4 {[%clk 0:02:52]}  Bg7 {[%clk 0:02:27]} 8. b5 {[%clk 0:02:51]}  Nd8 {[%clk 0:02:26]} 9. h3 {[%clk 0:02:46]}  f5 {[%clk 0:02:17]} 10. Nf3 {[%clk 0:02:40]}  Nf6 {[%clk 0:02:11]} 11. Bg5 {[%clk 0:02:05]}  h6 {[%clk 0:02:08]} 12. Bxf6 {[%clk 0:02:05]}  Bxf6 {[%clk 0:02:08]} 13. Nd5 {[%clk 0:02:01]}  Bxd5 {[%clk 0:01:57]} 14. cxd5 {[%clk 0:02:01]}  O-O {[%clk 0:01:57]} 15. Nd2 {[%clk 0:01:44]}  a6 {[%clk 0:01:51]} 16. b6 {[%clk 0:01:35]}  cxb6 {[%clk 0:01:36]} 17. Rxb6 {[%clk 0:01:33]}  Qc7 {[%clk 0:01:33]} 18. Nc4 {[%clk 0:01:31]}  Nf7 {[%clk 0:01:28]} 19. Qb3 {[%clk 0:01:28]}  Rab8 {[%clk 0:00:44]} 20. O-O {[%clk 0:01:27]}  e4 {[%clk 0:00:42]} 21. dxe4 {[%clk 0:01:19]}  Bd4 {[%clk 0:00:38]} 22. exf5 {[%clk 0:00:56]}  gxf5 {[%clk 0:00:35]} 23. e3 {[%clk 0:00:35]}  Bxb6 {[%clk 0:00:34]} 24. Nxb6 {[%clk 0:00:36]}  Ne5 {[%clk 0:00:31]} 25. f4 {[%clk 0:00:28]}  Nd7 {[%clk 0:00:29]} 26. Nc4 {[%clk 0:00:27]}  Rbc8 {[%clk 0:00:24]} 27. Nd2 {[%clk 0:00:24]}  Qc3 {[%clk 0:00:14]} 28. Qxc3 {[%clk 0:00:18]}  Rxc3 {[%clk 0:00:13]} 29. e4 {[%clk 0:00:14]}  Rc2 {[%clk 0:00:13]} 30. Nb3 {[%clk 0:00:11]}  fxe4 {[%clk 0:00:10]} 31. Bxe4 {[%clk 0:00:10]}  Rxa2 {[%clk 0:00:10]} 32. Nd4 {[%clk 0:00:09]}  Nc5 {[%clk 0:00:07]} 33. Bg6 {[%clk 0:00:05]}  a5 {[%clk 0:00:06]} 34. Rb1 {[%clk 0:00:04]}  Rd2 {[%clk 0:00:04]} 35. Ne6 {[%clk 0:00:04]}  Nxe6 {[%clk 0:00:01]} 36. dxe6 {[%clk 0:00:05]}  Re2 {[%clk 0:00:02]} 37. f5 {[%clk 0:00:04]}  a4 {[%clk 0:00:02]} 38. Rxb7 {[%clk 0:00:03]}  a3 {[%clk 0:00:02]} 39. e7 {[%clk 0:00:03]}  a2 {[%clk 0:00:01]} 40. Ra7 {[%clk 0:00:03]} 1-0


[Site "https://www.chess.com"]

[Event "Titled Tuesday Blitz March 15 Early 2022"]
[White "Shkapenko, Pavel"]
[Black "Agrest, Evgenij"]
[WhiteFideId "4151933"]
[BlackFideId "1705024"]
[WhiteElo "2386"]
[BlackElo "2574"]
[Result "1-0"]
[Round "11"]
[TimeControl "180+1"]
[Date "2022.03.15"]
[WhiteClock "0:00:08"]
[BlackClock "0:00:09"]

1. e4 {[%clk 0:02:49]}  c5 {[%clk 0:02:58]} 2. c3 {[%clk 0:02:47]}  d6 {[%clk 0:02:57]} 3. d4 {[%clk 0:02:46]}  Nf6 {[%clk 0:02:56]} 4. Bd3 {[%clk 0:02:46]}  Nc6 {[%clk 0:02:55]} 5. Nf3 {[%clk 0:02:18]}  g6 {[%clk 0:02:52]} 6. d5 {[%clk 0:02:13]}  Nb8 {[%clk 0:02:50]} 7. h3 {[%clk 0:02:13]}  Bg7 {[%clk 0:02:49]} 8. O-O {[%clk 0:02:12]}  O-O {[%clk 0:02:49]} 9. Re1 {[%clk 0:02:00]}  Na6 {[%clk 0:02:48]} 10. a4 {[%clk 0:01:57]}  Nc7 {[%clk 0:02:47]} 11. Na3 {[%clk 0:01:57]}  b6 {[%clk 0:02:43]} 12. Nb5 {[%clk 0:01:54]}  Bd7 {[%clk 0:02:37]} 13. Qe2 {[%clk 0:01:45]}  Nfe8 {[%clk 0:02:33]} 14. e5 {[%clk 0:01:42]}  Bxb5 {[%clk 0:02:22]} 15. axb5 {[%clk 0:01:40]}  dxe5 {[%clk 0:01:51]} 16. Nxe5 {[%clk 0:01:37]}  Bxe5 {[%clk 0:01:49]} 17. Qxe5 {[%clk 0:01:37]}  Nd6 {[%clk 0:01:36]} 18. Bh6 {[%clk 0:01:35]}  f6 {[%clk 0:01:35]} 19. Qxe7 {[%clk 0:01:35]}  Qxe7 {[%clk 0:01:32]} 20. Rxe7 {[%clk 0:01:35]}  Rf7 {[%clk 0:01:32]} 21. Rxf7 {[%clk 0:01:02]}  Kxf7 {[%clk 0:01:31]} 22. Bf4 {[%clk 0:00:58]}  Ke7 {[%clk 0:01:20]} 23. c4 {[%clk 0:00:57]}  Kd7 {[%clk 0:01:18]} 24. h4 {[%clk 0:00:53]}  Nce8 {[%clk 0:01:11]} 25. Be3 {[%clk 0:00:45]}  Nf7 {[%clk 0:01:09]} 26. b4 {[%clk 0:00:44]}  cxb4 {[%clk 0:00:57]} 27. Bxb6 {[%clk 0:00:43]}  Ne5 {[%clk 0:00:57]} 28. Bf1 {[%clk 0:00:41]}  Nd6 {[%clk 0:00:55]} 29. c5 {[%clk 0:00:40]}  axb6 {[%clk 0:00:55]} 30. c6+ {[%clk 0:00:39]}  Kc7 {[%clk 0:00:55]} 31. Rxa8 {[%clk 0:00:40]}  b3 {[%clk 0:00:48]} 32. Ra3 {[%clk 0:00:39]}  b2 {[%clk 0:00:46]} 33. Rb3 {[%clk 0:00:38]}  Nec4 {[%clk 0:00:45]} 34. f3 {[%clk 0:00:31]}  f5 {[%clk 0:00:43]} 35. Kf2 {[%clk 0:00:30]}  f4 {[%clk 0:00:37]} 36. Bxc4 {[%clk 0:00:03]}  Nxc4 {[%clk 0:00:36]} 37. Ke2 {[%clk 0:00:04]}  h6 {[%clk 0:00:25]} 38. Kd3 {[%clk 0:00:04]}  Ne3 {[%clk 0:00:25]} 39. Rxb2 {[%clk 0:00:04]}  Nxd5 {[%clk 0:00:25]} 40. Kd4 {[%clk 0:00:03]}  Ne7 {[%clk 0:00:19]} 41. Ra2 {[%clk 0:00:04]}  Nf5+ {[%clk 0:00:18]} 42. Ke5 {[%clk 0:00:03]}  Nxh4 {[%clk 0:00:18]} 43. Ra7+ {[%clk 0:00:04]}  Kc8 {[%clk 0:00:18]} 44. Ke6 {[%clk 0:00:04]}  Nf5 {[%clk 0:00:18]} 45. Rh7 {[%clk 0:00:05]}  Nd4+ {[%clk 0:00:17]} 46. Kd5 {[%clk 0:00:05]}  Nxb5 {[%clk 0:00:17]} 47. c7 {[%clk 0:00:05]}  Nxc7+ {[%clk 0:00:13]} 48. Kc6 {[%clk 0:00:05]}  Ne6 {[%clk 0:00:13]} 49. Rh8+ {[%clk 0:00:05]}  Nd8+ {[%clk 0:00:12]} 50. Kd6 {[%clk 0:00:06]}  b5 {[%clk 0:00:10]} 51. Ke7 {[%clk 0:00:07]}  b4 {[%clk 0:00:10]} 52. Rxd8+ {[%clk 0:00:07]}  Kc7 {[%clk 0:00:09]} 53. Rd4 {[%clk 0:00:08]} 1-0


[Site "https://www.chess.com"]